Body Name,Body,Service Division,Expense Type,Date Paid,Transaction Ref,Invoice Amount,Supplier Name
Boston Borough Council,http://statistics.data.gov.uk/id/local-authority/32UB,Communities,Grants and Contributions to Outside Bodies - No Service Received,01/08/2023,30007195,"145,200.00 ",Post Office (payout funding)
Boston Borough Council,http://statistics.data.gov.uk/id/local-authority/32UB,Bereavement,Materials and Consumables,03/08/2023,30007056,"1,551.75 ",Ashdown Supplies
Boston Borough Council,http://statistics.data.gov.uk/id/local-authority/32UB,BTAC,Grants and Contributions to Outside Bodies - No Service Received,03/08/2023,30007031,"1,000.00 ",Boston Community Transport Ltd
Boston Borough Council,http://statistics.data.gov.uk/id/local-authority/32UB,Building Control,Other Private Contractors,03/08/2023,30007058,"1,233.93 ",Foundations and Buildings LTD
Boston Borough Council,http://statistics.data.gov.uk/id/local-authority/32UB,Business Transformation,Postages,03/08/2023,30007111,548.79 ,Royal Mail
Boston Borough Council,http://statistics.data.gov.uk/id/local-authority/32UB,Communities,Bed and Breakfast Accommodation (Homelessness Service),03/08/2023,30007079,910.00 ,The Lord Grey Hotel t/a The Lord Grey Ltd
Boston Borough Council,http://statistics.data.gov.uk/id/local-authority/32UB,Communities,Other Miscellaneous Expenses,03/08/2023,30007082,"1,084.00 ",Applied Satellite Technology Distribution Ltd
Boston Borough Council,http://statistics.data.gov.uk/id/local-authority/32UB,Credit Control,Other Miscellaneous Expenses,03/08/2023,30006928,"1,249.77 ",Pay360 LTD
Boston Borough Council,http://statistics.data.gov.uk/id/local-authority/32UB,Economic Development,Professional and Contractors Fees,03/08/2023,30007027,600.00 ,DAY Architectural Limited
Boston Borough Council,http://statistics.data.gov.uk/id/local-authority/32UB,Finance,COVID Grant (Agent) Income,03/08/2023,30007221,"306,024.00 ","Department for Business, Energy & Industrial Strategy"
Boston Borough Council,http://statistics.data.gov.uk/id/local-authority/32UB,Operations,Maintenance,03/08/2023,30006630,363.03 ,Chris Sellars Groundcare LTD
Boston Borough Council,http://statistics.data.gov.uk/id/local-authority/32UB,Operations,Materials and Consumables,03/08/2023,30006432,765.24 ,Cheer's Nurseries LTD
Boston Borough Council,http://statistics.data.gov.uk/id/local-authority/32UB,Operations,Materials and Consumables,03/08/2023,30006433,"1,022.40 ",Cheer's Nurseries LTD
Boston Borough Council,http://statistics.data.gov.uk/id/local-authority/32UB,Operations,Materials and Consumables,03/08/2023,30006434,696.11 ,Cheer's Nurseries LTD
Boston Borough Council,http://statistics.data.gov.uk/id/local-authority/32UB,Property Services,Buildings Maintenance - Programmed,03/08/2023,30007014,553.74 ,Glen Farrow UK LTD
Boston Borough Council,http://statistics.data.gov.uk/id/local-authority/32UB,Strategic Economic Development Projects,Professional and Contractors Fees,03/08/2023,30006501,"3,000.00 ",Price & Myers
Boston Borough Council,http://statistics.data.gov.uk/id/local-authority/32UB,Strategic Economic Development Projects,Professional and Contractors Fees,03/08/2023,30007086,"2,305.00 ",Delta-Simons
Boston Borough Council,http://statistics.data.gov.uk/id/local-authority/32UB,Strategic Growth & Development,Grants and Contributions to Outside Bodies - No Service Received,03/08/2023,30007116,"12,155.00 ",Lincolnshire Community Foundation
Boston Borough Council,http://statistics.data.gov.uk/id/local-authority/32UB,Council Tax & Benefits,Business Rates - Transitional Protection Payments,04/08/2023,30007169,"3,206,109.73 ",Lincolnshire County Council
Boston Borough Council,http://statistics.data.gov.uk/id/local-authority/32UB,Council Tax & Benefits,Council Tax Precept - Lincolnshire Police,04/08/2023,30007222,"587,502.48 ",Police and Crime Commissioner For Lincolnshire
Boston Borough Council,http://statistics.data.gov.uk/id/local-authority/32UB,Finance,Business Rates - Transitional Protection Payments,04/08/2023,30007169,"3,206,109.73 ",Lincolnshire County Council
Boston Borough Council,http://statistics.data.gov.uk/id/local-authority/32UB,Finance,Council Tax Precept - Lincolnshire Police,04/08/2023,30007222,"587,502.48 ",Police and Crime Commissioner For Lincolnshire
Boston Borough Council,http://statistics.data.gov.uk/id/local-authority/32UB,Information Technology,Telephone and Mobiles,04/08/2023,30007161,316.72 ,British Telecommunications Plc
Boston Borough Council,http://statistics.data.gov.uk/id/local-authority/32UB,Bereavement,Gas,08/08/2023,30007304,"5,135.62 ",Espo Gas and Electricity
Boston Borough Council,http://statistics.data.gov.uk/id/local-authority/32UB,Bereavement,Professional and Contractors Fees,08/08/2023,30007085,518.00 ,Sutterton Surgery - Dr Stephen Hughes
Boston Borough Council,http://statistics.data.gov.uk/id/local-authority/32UB,Bereavement,Professional and Contractors Fees,08/08/2023,30007088,684.50 ,�Personal Information Redacted�
Boston Borough Council,http://statistics.data.gov.uk/id/local-authority/32UB,BTAC,Furniture and Equipment,08/08/2023,30006632,"7,760.00 ",Glendale Countryside Limited
Boston Borough Council,http://statistics.data.gov.uk/id/local-authority/32UB,BTAC,Performers and Entertainers Fees,08/08/2023,30007139,450.00 ,Astro Roadshow / Stolen Fridays
Boston Borough Council,http://statistics.data.gov.uk/id/local-authority/32UB,Communities,Grants and Contributions to Outside Bodies - No Service Received,08/08/2023,30007166,"25,000.00 ",Lincolnshire Community Foundation
Boston Borough Council,http://statistics.data.gov.uk/id/local-authority/32UB,Communities,Grants and Contributions to Outside Bodies - No Service Received,08/08/2023,30007168,"7,075.78 ",R A Joinery
Boston Borough Council,http://statistics.data.gov.uk/id/local-authority/32UB,Environmental Health,Professional and Contractors Fees,08/08/2023,30007136,"1,120.83 ",Pestinator UK LTD
Boston Borough Council,http://statistics.data.gov.uk/id/local-authority/32UB,Finance,Banking Charges,08/08/2023,30007287,"2,544.69 ",HSBC
Boston Borough Council,http://statistics.data.gov.uk/id/local-authority/32UB,Heritage,Gas,08/08/2023,30007297,776.19 ,Espo Gas and Electricity
Boston Borough Council,http://statistics.data.gov.uk/id/local-authority/32UB,Information Technology,Telephone and Mobiles,08/08/2023,30007122,"1,577.55 ",Vodafone
Boston Borough Council,http://statistics.data.gov.uk/id/local-authority/32UB,Legal Services,Legal Fees,08/08/2023,30007132,770.00 ,St John's Chambers
Boston Borough Council,http://statistics.data.gov.uk/id/local-authority/32UB,Leisure,Gas,08/08/2023,30007003,"1,555.00 ",SDL Biomass LTD
Boston Borough Council,http://statistics.data.gov.uk/id/local-authority/32UB,Leisure,Gas,08/08/2023,30007301,"3,684.16 ",Espo Gas and Electricity
Boston Borough Council,http://statistics.data.gov.uk/id/local-authority/32UB,Leisure,Professional and Contractors Fees,08/08/2023,30006754,"11,672.00 ",Sharpe Pritchard LLP
Boston Borough Council,http://statistics.data.gov.uk/id/local-authority/32UB,Operations,Other Private Contractors,08/08/2023,30007119,575.00 ,Healthguard LTD
Boston Borough Council,http://statistics.data.gov.uk/id/local-authority/32UB,Operations,Other Private Contractors,08/08/2023,30007120,575.00 ,Healthguard LTD
Boston Borough Council,http://statistics.data.gov.uk/id/local-authority/32UB,Operations,Replacement Handset,08/08/2023,30007016,389.00 ,Vodafone LTD (Corporate)
Boston Borough Council,http://statistics.data.gov.uk/id/local-authority/32UB,Property Services,Buildings Maintenance - Programmed,08/08/2023,30006969,300.00 ,Wiles Fabrications
Boston Borough Council,http://statistics.data.gov.uk/id/local-authority/32UB,Property Services,Gas,08/08/2023,30007299,"1,036.86 ",Espo Gas and Electricity
Boston Borough Council,http://statistics.data.gov.uk/id/local-authority/32UB,Property Services,Replacement Handset,08/08/2023,30007016,389.00 ,Vodafone LTD (Corporate)
Boston Borough Council,http://statistics.data.gov.uk/id/local-authority/32UB,Strategic Economic Development Projects,Professional and Contractors Fees,08/08/2023,30007157,"2,230.75 ",BrightSpark Studios Limited
Boston Borough Council,http://statistics.data.gov.uk/id/local-authority/32UB,Business Transformation,Postages,10/08/2023,30007201,357.42 ,Royal Mail
Boston Borough Council,http://statistics.data.gov.uk/id/local-authority/32UB,Communities,Bed and Breakfast Accommodation (Homelessness Service),10/08/2023,30007233,240.02 ,Twenty Hotel And Bar (Boston) LTD
Boston Borough Council,http://statistics.data.gov.uk/id/local-authority/32UB,Communities,Grants and Contributions to Outside Bodies - No Service Received,10/08/2023,30007215,"2,062.68 ",Mark Donner LTD
Boston Borough Council,http://statistics.data.gov.uk/id/local-authority/32UB,Communities,Grants and Contributions to Outside Bodies - No Service Received,10/08/2023,30007217,"27,180.78 ",Ron Gale And Sons LTD
Boston Borough Council,http://statistics.data.gov.uk/id/local-authority/32UB,Corporate,Purchase of Hardware,10/08/2023,30007142,"49,000.00 ",Public Sector Partnership Services LTD
Boston Borough Council,http://statistics.data.gov.uk/id/local-authority/32UB,Corporate,Purchase of Hardware,10/08/2023,30007143,"9,724.64 ",Public Sector Partnership Services LTD
Boston Borough Council,http://statistics.data.gov.uk/id/local-authority/32UB,Economic Development,Professional Fees,10/08/2023,30007164,"7,340.28 ",East Midlands Railway EMR
Boston Borough Council,http://statistics.data.gov.uk/id/local-authority/32UB,Economic Development,Works to Buildings (Main Contractor),10/08/2023,30007191,"55,227.82 ",Central Bank St Botolphs Church
Boston Borough Council,http://statistics.data.gov.uk/id/local-authority/32UB,Leisure,Gas,10/08/2023,30007002,"1,550.00 ",SDL Biomass LTD
Boston Borough Council,http://statistics.data.gov.uk/id/local-authority/32UB,Leisure,Gas,10/08/2023,30007155,"1,700.00 ",SDL Biomass LTD
Boston Borough Council,http://statistics.data.gov.uk/id/local-authority/32UB,Operations,Agency Staff,10/08/2023,30007121,"7,601.01 ",Comensura LTD
Boston Borough Council,http://statistics.data.gov.uk/id/local-authority/32UB,Operations,Maintenance,10/08/2023,30006840,250.00 ,Chris Sellars Groundcare LTD
Boston Borough Council,http://statistics.data.gov.uk/id/local-authority/32UB,Operations,Maintenance,10/08/2023,30006890,250.00 ,Chris Sellars Groundcare LTD
Boston Borough Council,http://statistics.data.gov.uk/id/local-authority/32UB,Operations,Tyres,10/08/2023,30006898,"2,856.07 ",BA Bush and Son LTD
Boston Borough Council,http://statistics.data.gov.uk/id/local-authority/32UB,Operations,Tyres,10/08/2023,30006899,"2,856.07 ",BA Bush and Son LTD
Boston Borough Council,http://statistics.data.gov.uk/id/local-authority/32UB,Operations,Vehicle Hire,10/08/2023,30006951,"4,840.00 ",SFS t/a Collett Transport Services
Boston Borough Council,http://statistics.data.gov.uk/id/local-authority/32UB,Property Services,Buildings Maintenance - Programmed,10/08/2023,30007102,250.00 ,Alarmline Security LTD
Boston Borough Council,http://statistics.data.gov.uk/id/local-authority/32UB,Property Services,Gas,10/08/2023,30007154,"1,570.00 ",SDL Biomass LTD
Boston Borough Council,http://statistics.data.gov.uk/id/local-authority/32UB,Strategic Economic Development Projects,Professional and Contractors Fees,10/08/2023,30007231,"1,044.00 ",Park Avenue Recruitment
Boston Borough Council,http://statistics.data.gov.uk/id/local-authority/32UB,Strategic Growth & Development,Grants and Contributions to Outside Bodies - No Service Received,10/08/2023,30007194,"11,468.08 ",Destination Lincolnshire Community Interest Company
Boston Borough Council,http://statistics.data.gov.uk/id/local-authority/32UB,Communities,Furniture and Equipment,15/08/2023,30007098,310.00 ,Chubb Fire and Security LTD
Boston Borough Council,http://statistics.data.gov.uk/id/local-authority/32UB,Communities,Grants and Contributions - Where a Service is Received,15/08/2023,30007234,"7,469.53 ",North Kesteven District Council
Boston Borough Council,http://statistics.data.gov.uk/id/local-authority/32UB,Communities,Grants and Contributions to Outside Bodies - No Service Received,15/08/2023,30007167,"1,129.03 ",Lincolnshire Bathrooms And Wetrooms
Boston Borough Council,http://statistics.data.gov.uk/id/local-authority/32UB,Communities,Grants and Contributions to Outside Bodies - No Service Received,15/08/2023,30007241,"27,180.78 ",Ron Gale And Sons LTD
Boston Borough Council,http://statistics.data.gov.uk/id/local-authority/32UB,Land Charges & Licencing,Professional and Contractors Fees,15/08/2023,30007138,"1,619.16 ",Lincolnshire County Council
Boston Borough Council,http://statistics.data.gov.uk/id/local-authority/32UB,Leisure,Gas,15/08/2023,30007008,"3,730.00 ",SDL Biomass LTD
Boston Borough Council,http://statistics.data.gov.uk/id/local-authority/32UB,Leisure,Materials and Consumables,15/08/2023,30007017,235.28 ,Univar Solutions BV
Boston Borough Council,http://statistics.data.gov.uk/id/local-authority/32UB,Operations,Agency Staff,15/08/2023,30007244,"11,896.11 ",Comensura LTD
Boston Borough Council,http://statistics.data.gov.uk/id/local-authority/32UB,Operations,Vehicle Hire,15/08/2023,30006442,720.00 ,Euro Municipal LTD
Boston Borough Council,http://statistics.data.gov.uk/id/local-authority/32UB,Property Services,Buildings Maintenance - Programmed,15/08/2023,30007199,"1,285.00 ",C G Godfrey LTD
Boston Borough Council,http://statistics.data.gov.uk/id/local-authority/32UB,Business Transformation,Postages,17/08/2023,30007152,484.42 ,Royal Mail
Boston Borough Council,http://statistics.data.gov.uk/id/local-authority/32UB,Communities,Bed and Breakfast Accommodation (Homelessness Service),17/08/2023,30007310,840.00 ,The Lord Grey Hotel t/a The Lord Grey Ltd
Boston Borough Council,http://statistics.data.gov.uk/id/local-authority/32UB,Communities,Grants and Contributions to Outside Bodies - No Service Received,17/08/2023,30007317,"9,000.00 ",Lincolnshire Community Foundation
Boston Borough Council,http://statistics.data.gov.uk/id/local-authority/32UB,Communities,Professional and Contractors Fees,17/08/2023,30007272,"15,600.00 ",Restore Church Boston
Boston Borough Council,http://statistics.data.gov.uk/id/local-authority/32UB,Land Charges & Licencing,Professional and Contractors Fees,17/08/2023,30007500,"1,368.00 ",Disclosure and Barring Service
Boston Borough Council,http://statistics.data.gov.uk/id/local-authority/32UB,Leisure,Materials and Consumables,17/08/2023,30006972,"1,749.18 ",CSS Pools And Leisure LTD
Boston Borough Council,http://statistics.data.gov.uk/id/local-authority/32UB,Operations,Other Miscellaneous Expenses,17/08/2023,30006986,"1,198.60 ",A and C Weber UK LTD
Boston Borough Council,http://statistics.data.gov.uk/id/local-authority/32UB,Operations,Transport Insurance excess,17/08/2023,30007288,250.00 ,AW Repair Group
Boston Borough Council,http://statistics.data.gov.uk/id/local-authority/32UB,Strategic Growth & Development,Grants and Contributions to Outside Bodies - No Service Received,17/08/2023,30007273,"35,000.00 ",The We'll Meet Again WW2 Museum
Boston Borough Council,http://statistics.data.gov.uk/id/local-authority/32UB,Finance,Electricity,18/08/2023,30007392,"49,057.49 ",TotalEnergies
Boston Borough Council,http://statistics.data.gov.uk/id/local-authority/32UB,Operations,Fuel and Oil,21/08/2023,30007508,306.72 ,Fuelcard Services Ltd
Boston Borough Council,http://statistics.data.gov.uk/id/local-authority/32UB,Operations,Fuel and Oil,21/08/2023,30007509,"6,011.28 ",Fuelcard Services Ltd
Boston Borough Council,http://statistics.data.gov.uk/id/local-authority/32UB,Communities,Grants and Contributions to Outside Bodies - No Service Received,22/08/2023,30007318,"5,000.00 ",The Parish of Boston
Boston Borough Council,http://statistics.data.gov.uk/id/local-authority/32UB,Communities,Grants and Contributions to Outside Bodies - No Service Received,22/08/2023,30007320,770.00 ,Oakley Estates
Boston Borough Council,http://statistics.data.gov.uk/id/local-authority/32UB,Communities,Grants and Contributions to Outside Bodies - No Service Received,22/08/2023,30007406,"1,836.42 ",Dolphin Mobility East Midlands LTD
Boston Borough Council,http://statistics.data.gov.uk/id/local-authority/32UB,Communities,Professional and Contractors Fees,22/08/2023,30007359,"34,000.00 ",Spacehive Ltd
Boston Borough Council,http://statistics.data.gov.uk/id/local-authority/32UB,Council Tax & Benefits,PSPS Non-Base Contract Costs,22/08/2023,30007323,"41,480.51 ",Public Sector Partnership Services LTD
Boston Borough Council,http://statistics.data.gov.uk/id/local-authority/32UB,Credit Control,Professional and Contractors Fees,22/08/2023,30007150,"1,650.00 ",Greenhalgh Kerr
Boston Borough Council,http://statistics.data.gov.uk/id/local-authority/32UB,Credit Control,Professional and Contractors Fees,22/08/2023,30007413,"2,500.00 ",City of Lincoln Council
Boston Borough Council,http://statistics.data.gov.uk/id/local-authority/32UB,"Democratic, Civic & Electoral Services",Grants and Contributions to Outside Bodies - No Service Received,22/08/2023,30007069,500.00 ,Boston Hanse Group
Boston Borough Council,http://statistics.data.gov.uk/id/local-authority/32UB,"Democratic, Civic & Electoral Services",Stationery,22/08/2023,30007055,326.70 ,Hound Envelopes LTD
Boston Borough Council,http://statistics.data.gov.uk/id/local-authority/32UB,Finance,Electricity,22/08/2023,30007414,"57,164.14 ",TotalEnergies
Boston Borough Council,http://statistics.data.gov.uk/id/local-authority/32UB,Finance,Insurance,22/08/2023,30007427,"6,431.11 ",Zurich Municipal Insurance Company
Boston Borough Council,http://statistics.data.gov.uk/id/local-authority/32UB,Finance,Public Sector Partnership Services,22/08/2023,30007124,"247,830.00 ",Public Sector Partnership Services LTD
Boston Borough Council,http://statistics.data.gov.uk/id/local-authority/32UB,Information Technology,Computer Hardware Purchase,22/08/2023,30007312,"2,552.11 ",Public Sector Partnership Services LTD
Boston Borough Council,http://statistics.data.gov.uk/id/local-authority/32UB,Leisure,Insurance Excess (non transport),22/08/2023,30007246,249.00 ,AXIOM INCE OFFICE
Boston Borough Council,http://statistics.data.gov.uk/id/local-authority/32UB,Leisure,Materials and Consumables,22/08/2023,30007090,"1,245.00 ",Univar Solutions BV
Boston Borough Council,http://statistics.data.gov.uk/id/local-authority/32UB,Leisure,Materials and Consumables,22/08/2023,30007091,"1,283.60 ",Univar Solutions BV
Boston Borough Council,http://statistics.data.gov.uk/id/local-authority/32UB,Leisure,Performers and Entertainers Fees,22/08/2023,30007411,380.00 ,�Personal Information Redacted�
Boston Borough Council,http://statistics.data.gov.uk/id/local-authority/32UB,Operations,Maintenance,22/08/2023,30007106,245.09 ,SFS t/a Collett Transport Services
Boston Borough Council,http://statistics.data.gov.uk/id/local-authority/32UB,Property Services,Buildings Maintenance - Programmed,22/08/2023,30007216,469.48 ,Princebuild LTD
Boston Borough Council,http://statistics.data.gov.uk/id/local-authority/32UB,Property Services,Buildings Maintenance - Programmed,22/08/2023,30007218,370.50 ,Princebuild LTD
Boston Borough Council,http://statistics.data.gov.uk/id/local-authority/32UB,Property Services,Buildings Maintenance - Programmed,22/08/2023,30007276,728.68 ,Chubb Fire and Security LTD
Boston Borough Council,http://statistics.data.gov.uk/id/local-authority/32UB,Property Services,Buildings Maintenance - Programmed,22/08/2023,30007298,293.03 ,Chubb Fire and Security LTD
Boston Borough Council,http://statistics.data.gov.uk/id/local-authority/32UB,Property Services,Buildings Maintenance - Programmed,22/08/2023,30007330,931.72 ,Princebuild LTD
Boston Borough Council,http://statistics.data.gov.uk/id/local-authority/32UB,Property Services,Buildings Maintenance - Programmed,22/08/2023,30007331,"6,678.83 ",Princebuild LTD
Boston Borough Council,http://statistics.data.gov.uk/id/local-authority/32UB,Property Services,Buildings Maintenance - Programmed,22/08/2023,30007332,"3,224.43 ",Princebuild LTD
Boston Borough Council,http://statistics.data.gov.uk/id/local-authority/32UB,Property Services,Buildings Maintenance - Programmed,22/08/2023,30007335,696.47 ,Princebuild LTD
Boston Borough Council,http://statistics.data.gov.uk/id/local-authority/32UB,Strategic Economic Development Projects,Professional and Contractors Fees,22/08/2023,30007028,550.00 ,BWB Consulting Ltd
Boston Borough Council,http://statistics.data.gov.uk/id/local-authority/32UB,Strategic Economic Development Projects,Professional and Contractors Fees,22/08/2023,30007230,"1,000.00 ",Price & Myers
Boston Borough Council,http://statistics.data.gov.uk/id/local-authority/32UB,Bereavement,Internet Broadband Payments,24/08/2023,30007172,52.43 ,Multidata LTD
Boston Borough Council,http://statistics.data.gov.uk/id/local-authority/32UB,Bereavement,Purchase Of Goods For Resale,24/08/2023,30007077,393.00 ,The Yaboo Co LTD (Wesley Media)
Boston Borough Council,http://statistics.data.gov.uk/id/local-authority/32UB,BTAC,Advertising - Events,24/08/2023,30007153,255.14 ,Bauer Radio LTD
Boston Borough Council,http://statistics.data.gov.uk/id/local-authority/32UB,Business Transformation,Postages,24/08/2023,30007316,427.97 ,Royal Mail
Boston Borough Council,http://statistics.data.gov.uk/id/local-authority/32UB,Communities,Grants and Contributions to Outside Bodies - No Service Received,24/08/2023,30007467,280.00 ,�Personal Information Redacted�
Boston Borough Council,http://statistics.data.gov.uk/id/local-authority/32UB,Communities,Grants and Contributions to Outside Bodies - No Service Received,24/08/2023,30007468,"5,000.00 ",Centenary Methodist Church
Boston Borough Council,http://statistics.data.gov.uk/id/local-authority/32UB,Communities,Other Miscellaneous Expenses,24/08/2023,30007240,584.18 ,thebigword
Boston Borough Council,http://statistics.data.gov.uk/id/local-authority/32UB,Communities,Other Miscellaneous Expenses,24/08/2023,30007465,275.00 ,The Biz Events
Boston Borough Council,http://statistics.data.gov.uk/id/local-authority/32UB,"Democratic, Civic & Electoral Services",Grants and Contributions to Outside Bodies - No Service Received,24/08/2023,30007342,500.00 ,Boston Internationalcommittee
Boston Borough Council,http://statistics.data.gov.uk/id/local-authority/32UB,"Democratic, Civic & Electoral Services",Other Miscellaneous Expenses,24/08/2023,30007437,400.00 ,Primetime Video Productions
Boston Borough Council,http://statistics.data.gov.uk/id/local-authority/32UB,"Democratic, Civic & Electoral Services",PSPS Non-Base Contract Costs,24/08/2023,30007461,825.75 ,Public Sector Partnership Services LTD
Boston Borough Council,http://statistics.data.gov.uk/id/local-authority/32UB,"Democratic, Civic & Electoral Services",PSPS Non-Base Contract Costs,24/08/2023,30007464,700.00 ,Public Sector Partnership Services LTD
Boston Borough Council,http://statistics.data.gov.uk/id/local-authority/32UB,Grant Payments,Non-Domestic Rates Income,24/08/2023,30007384,"286,971.77 ",Lincolnshire County Council
Boston Borough Council,http://statistics.data.gov.uk/id/local-authority/32UB,Heritage,Internet Broadband Payments,24/08/2023,30007172,112.26 ,Multidata LTD
Boston Borough Council,http://statistics.data.gov.uk/id/local-authority/32UB,Human Resources,PSPS Non-Base Contract Costs,24/08/2023,30007462,"2,372.50 ",Public Sector Partnership Services LTD
Boston Borough Council,http://statistics.data.gov.uk/id/local-authority/32UB,Information Technology,Computer Software Licence Costs,24/08/2023,30007083,588.00 ,Goss Interactive LTD
Boston Borough Council,http://statistics.data.gov.uk/id/local-authority/32UB,Information Technology,Computer Software Licence Costs,24/08/2023,30007084,"1,650.00 ",Goss Interactive LTD
Boston Borough Council,http://statistics.data.gov.uk/id/local-authority/32UB,Information Technology,Computer Software Licence Costs,24/08/2023,30007129,"7,040.50 ",Softcat
Boston Borough Council,http://statistics.data.gov.uk/id/local-authority/32UB,Leisure,Insurance Excess (non transport),24/08/2023,30007237,"2,250.00 ",Kennedys Law LLP
Boston Borough Council,http://statistics.data.gov.uk/id/local-authority/32UB,Leisure,Internet Broadband Payments,24/08/2023,30007172,368.00 ,Multidata LTD
Boston Borough Council,http://statistics.data.gov.uk/id/local-authority/32UB,Leisure,Materials and Consumables,24/08/2023,30007092,431.05 ,Univar Solutions BV
Boston Borough Council,http://statistics.data.gov.uk/id/local-authority/32UB,Leisure,Performers and Entertainers Fees,24/08/2023,30007455,800.00 ,�Personal Information Redacted�
Boston Borough Council,http://statistics.data.gov.uk/id/local-authority/32UB,Operations,Agency Staff,24/08/2023,30007380,"7,726.80 ",Comensura LTD
Boston Borough Council,http://statistics.data.gov.uk/id/local-authority/32UB,Operations,Maintenance,24/08/2023,30007226,285.00 ,Wells Tarpaulins Limited
Boston Borough Council,http://statistics.data.gov.uk/id/local-authority/32UB,Operations,Maintenance,24/08/2023,30007235,"25,928.93 ",Specialist Fleet Services LTD
Boston Borough Council,http://statistics.data.gov.uk/id/local-authority/32UB,Operations,Materials and Consumables,24/08/2023,30007117,502.70 ,ESPO
Boston Borough Council,http://statistics.data.gov.uk/id/local-authority/32UB,Operations,Other Miscellaneous Expenses,24/08/2023,30007131,"1,125.00 ",Imperial Polythene Products Limited
Boston Borough Council,http://statistics.data.gov.uk/id/local-authority/32UB,Operations,Replacement Handset,24/08/2023,30007337,389.00 ,Vodafone LTD (Corporate)
Boston Borough Council,http://statistics.data.gov.uk/id/local-authority/32UB,Operations,Vehicle Hire,24/08/2023,30007074,"4,620.00 ",SFS t/a Collett Transport Services
Boston Borough Council,http://statistics.data.gov.uk/id/local-authority/32UB,Planning,Planning Application Fees,24/08/2023,30007112,924.00 ,Planning Portal Quest LTD
Boston Borough Council,http://statistics.data.gov.uk/id/local-authority/32UB,Property Services,Buildings Maintenance - Programmed,24/08/2023,30006924,580.00 ,SG Services (Boston) LTD
Boston Borough Council,http://statistics.data.gov.uk/id/local-authority/32UB,Property Services,Buildings Maintenance - Programmed,24/08/2023,30007209,"1,369.10 ",Princebuild LTD
Boston Borough Council,http://statistics.data.gov.uk/id/local-authority/32UB,Property Services,Buildings Maintenance - Programmed,24/08/2023,30007259,503.77 ,Periam and Williamson Ltd
Boston Borough Council,http://statistics.data.gov.uk/id/local-authority/32UB,Property Services,Buildings Maintenance - Programmed,24/08/2023,30007263,332.00 ,Nerg
Boston Borough Council,http://statistics.data.gov.uk/id/local-authority/32UB,Property Services,Other Private Contractors,24/08/2023,30007243,"1,296.24 ",Kings Armoured Security Services LTD
Boston Borough Council,http://statistics.data.gov.uk/id/local-authority/32UB,Property Services,Professional and Contractors Fees,24/08/2023,30007174,554.58 ,Chipside LTD
Boston Borough Council,http://statistics.data.gov.uk/id/local-authority/32UB,Strategic Growth & Development,Grants and Contributions to Outside Bodies - No Service Received,24/08/2023,30007151,"105,000.00 ",Lincolnshire Community Foundation
Boston Borough Council,http://statistics.data.gov.uk/id/local-authority/32UB,BTAC,Furniture and Equipment,29/08/2023,30007156,"3,888.00 ",Broxap LTD
Boston Borough Council,http://statistics.data.gov.uk/id/local-authority/32UB,Communities,Subscriptions to Organisations and Other Bodies,29/08/2023,30007232,"2,500.00 ",Derby City Council
Boston Borough Council,http://statistics.data.gov.uk/id/local-authority/32UB,Credit Control,Other Miscellaneous Expenses,29/08/2023,30007190,"1,329.61 ",Pay360 LTD
Boston Borough Council,http://statistics.data.gov.uk/id/local-authority/32UB,"Democratic, Civic & Electoral Services",Professional and Contractors Fees,29/08/2023,30007189,462.00 ,Chase Services Group
Boston Borough Council,http://statistics.data.gov.uk/id/local-authority/32UB,Land Charges & Licencing,Professional and Contractors Fees,29/08/2023,30007401,"2,239.13 ",Lincolnshire County Council
Boston Borough Council,http://statistics.data.gov.uk/id/local-authority/32UB,Leisure,Purchase Of Goods For Resale,29/08/2023,30007197,533.07 ,Swim England Trading LTD
Boston Borough Council,http://statistics.data.gov.uk/id/local-authority/32UB,Operations,Maintenance,29/08/2023,30007108,218.76 ,Specialist Fleet Services LTD
Boston Borough Council,http://statistics.data.gov.uk/id/local-authority/32UB,Operations,Materials and Consumables,29/08/2023,30007410,"1,536.50 ",Chris Sellars Groundcare LTD
Boston Borough Council,http://statistics.data.gov.uk/id/local-authority/32UB,Planning,Planning Application Fees,29/08/2023,30007149,462.00 ,Planning Portal Quest LTD
Boston Borough Council,http://statistics.data.gov.uk/id/local-authority/32UB,Property Services,Agency Staff,29/08/2023,30007187,"7,937.98 ",Chase Services Group
Boston Borough Council,http://statistics.data.gov.uk/id/local-authority/32UB,Property Services,Agency Staff,29/08/2023,30007200,"1,068.90 ",Chase Services Group
Boston Borough Council,http://statistics.data.gov.uk/id/local-authority/32UB,Property Services,Buildings Maintenance - Programmed,29/08/2023,30007026,225.00 ,Healthguard LTD
Boston Borough Council,http://statistics.data.gov.uk/id/local-authority/32UB,Strategic Economic Development Projects,Professional and Contractors Fees,29/08/2023,30007471,835.20 ,Park Avenue Recruitment
Boston Borough Council,http://statistics.data.gov.uk/id/local-authority/32UB,BTAC,Other Hire Fees,31/08/2023,30007366,218.80 ,Singleton Event Services LTD
Boston Borough Council,http://statistics.data.gov.uk/id/local-authority/32UB,Business Transformation,Postages,31/08/2023,30007491,312.66 ,Royal Mail
Boston Borough Council,http://statistics.data.gov.uk/id/local-authority/32UB,Communities,Professional and Contractors Fees,31/08/2023,30007484,914.77 ,E J Parker Technical Services (Louth) Ltd
Boston Borough Council,http://statistics.data.gov.uk/id/local-authority/32UB,Economic Development,PSPS Non-Base Contract Costs,31/08/2023,30007460,318.75 ,Public Sector Partnership Services LTD
Boston Borough Council,http://statistics.data.gov.uk/id/local-authority/32UB,Environmental Health,Staff Training Expenses (Non-Payroll),31/08/2023,30007274,225.00 ,ABC Food Law LTD
Boston Borough Council,http://statistics.data.gov.uk/id/local-authority/32UB,Information Technology,Other Miscellaneous Expenses,31/08/2023,30007383,432.97 ,Vodafone LTD (Corporate)
Boston Borough Council,http://statistics.data.gov.uk/id/local-authority/32UB,Leisure,Performers and Entertainers Fees,31/08/2023,30007268,340.00 ,Corin's Events And Promotions
Boston Borough Council,http://statistics.data.gov.uk/id/local-authority/32UB,Leisure,Performers and Entertainers Fees,31/08/2023,30007269,850.00 ,Mike's Donkey
Boston Borough Council,http://statistics.data.gov.uk/id/local-authority/32UB,Operations,Agency Staff,31/08/2023,30007466,"6,921.06 ",Comensura LTD
Boston Borough Council,http://statistics.data.gov.uk/id/local-authority/32UB,Operations,Materials and Consumables,31/08/2023,30007503,645.00 ,BM Arboriculture & Garden Care
Boston Borough Council,http://statistics.data.gov.uk/id/local-authority/32UB,Operations,Other Private Contractors,31/08/2023,30007118,575.00 ,Healthguard LTD
Boston Borough Council,http://statistics.data.gov.uk/id/local-authority/32UB,Operations,Water and Sewerage Charges,31/08/2023,30006281,980.00 ,Aquam Water Services
Boston Borough Council,http://statistics.data.gov.uk/id/local-authority/32UB,Property Services,Buildings Maintenance - Programmed,31/08/2023,30007202,680.00 ,Dantherm LTD
